bitfinex-derivatives/quotes_SOLF0:USTF0_20250404
["timestamp","ask_amount","ask_price","bid_price","bid_amount"]
[1743752803216,0.06091155,117.85,117.82,8.54993369]
[1743752803416,0.06091155,117.85,117.83,8.4891]
[1743752803719,8.54901155,117.85,117.82,0.06053369]
[1743752803920,8.54901155,117.85,117.83,8.4891]
[1743752804322,8.54901155,117.85,117.82,0.06053369]
[1743752805023,8.54901155,117.85,117.83,8.4891]
[1743752805221,8.54901155,117.85,117.82,0.06053369]
[1743752805521,8.4885,117.84,117.82,0.06053369]
[1743752805723,0.06091155,117.85,117.82,0.06053369]
[1743752806823,31.32091155,117.85,117.82,0.06053369]
[1743752807626,8.4891,117.83,117.82,0.06053369]
[1743752807816,8.4891,117.83,117.79,31.32]
[1743752807817,9.56000143,117.84,117.79,9.56000143]
[1743752808021,9.56000143,117.82,117.75,2.2736]
[1743752808224,8.4914,117.8,117.77,8.493]
[1743752808518,2.3004,117.81,117.79,9.56000143]
[1743752808719,43.23340143,117.84,117.8,9.56000143]
[1743752808917,0.06346067,117.81,117.8,9.56000143]
[1743752809319,0.06346067,117.81,117.8,18.05130143]
[1743752809625,0.06346067,117.81,117.8,8.4913]
[1743752809821,8.55456067,117.81,117.79,0.05530033]
[1743752810015,40.9634621,117.81,117.79,0.05530033]
[1743752810420,31.40346067,117.81,117.79,8.54730033]
[1743752810621,31.40346067,117.81,117.79,0.05530033]
[1743752811022,0.06346067,117.81,117.8,8.4913]
[1743752812329,0.06346067,117.81,117.8,18.05130143]
[1743752813533,46.77649924,117.97,117.89,8.4848]
[1743752813733,2.3325,117.93,117.89,18.04480143]
[1743752814233,2.3325,117.93,117.89,8.4848]
[1743752814431,2.3325,117.93,117.89,18.04480143]
[1743752814731,0.06307266,117.91,117.89,18.04480143]
[1743752815627,0.06307266,117.91,117.89,8.4848]
[1743752816740,0.06307266,117.91,117.82,14.91611679]
[1743752816741,44.78498968,117.9,117.82,14.91611679]
[1743752816931,2.3311,117.89,117.82,14.91611679]
[1743752817230,2.3311,117.89,117.86,8.4867]
[1743752817935,2.39000268,117.89,117.86,0.05712346]
[1743752818430,2.39000268,117.89,117.86,8.54402346]
[1743752819135,33.89000268,117.89,117.87,8.486]
[1743752819335,33.89000268,117.89,117.86,0.05712346]
[1743752819632,33.89000268,117.89,117.87,8.4859]
[1743752819833,31.55890268,117.89,117.87,8.4859]
[1743752820232,31.55890268,117.89,117.86,0.05712346]
[1743752820436,31.55890268,117.89,117.86,8.54372346]
[1743752820637,31.55890268,117.89,117.86,0.05712346]
[1743752820837,31.55890268,117.89,117.86,8.54372346]
[1743752821140,31.55890268,117.89,117.86,0.05712346]
[1743752821540,0.05890268,117.89,117.88,8.4855]
[1743752822642,0.05890268,117.89,117.87,8.4857]
[1743752822836,0.05890268,117.89,117.86,14.97324025]
[1743752823031,0.05890268,117.89,117.87,8.4861]
[1743752823338,0.05890268,117.89,117.86,14.97324025]
[1743752823940,0.05890268,117.89,117.86,0.05712346]
[1743752824237,8.54410268,117.89,117.86,0.05712346]
[1743752824439,0.05890268,117.89,117.86,0.05712346]
[1743752824641,39.9656,117.88,117.86,0.05712346]
[1743752825532,39.9656,117.88,117.86,8.54412346]
[1743752825731,8.4862,117.87,117.86,0.05712346]
[1743752827242,44.5991,117.88,117.86,0.05712346]
[1743752827443,36.1133,117.88,117.86,0.05712346]
[1743752827834,8.4862,117.87,117.86,0.05712346]
[1743752828037,36.1133,117.88,117.86,0.05712346]
[1743752828240,31.48,117.88,117.86,0.05712346]
[1743752828442,31.51890268,117.89,117.86,0.05712346]
[1743752830041,8.4862,117.87,117.86,0.05712346]
[1743752830945,4.5618,117.88,117.83,8.4887]
[1743752831244,4.5618,117.88,117.81,17.24821679]
[1743752831446,8.488,117.85,117.81,17.24821679]
[1743752831743,31.6,117.85,117.81,17.24821679]
[1743752832140,0.06386432,117.84,117.82,0.05551475]
[1743752832744,0.06386432,117.84,117.82,14.97163154]
[1743752833144,0.06386432,117.84,117.83,8.4891]
[1743752834145,0.06386432,117.84,117.83,40.1491]
[1743752834538,4.5618,117.88,117.83,31.66]
[1743752834851,38.81268968,117.9,117.83,31.66]
[1743752834852,47.29708968,117.9,117.85,14.91611679]
[1743752835148,4.82048968,117.9,117.88,8.4854]
[1743752835351,4.82048968,117.9,117.87,14.91611679]
[1743752835744,4.88401949,117.9,117.87,14.97234683]
[1743752836243,12.30283751,117.9,117.88,8.4852]
[1743752836547,3.81873751,117.9,117.87,14.97234683]
[1743752836750,3.81873751,117.9,117.87,0.05623004]
[1743752836949,3.81873751,117.9,117.89,8.4848]
[1743752838844,3.81873751,117.9,117.87,0.05623004]
[1743752839853,3.81873751,117.9,117.88,8.485]
[1743752840048,3.81873751,117.9,117.87,0.05623004]
[1743752840352,3.81873751,117.9,117.88,8.485]
[1743752840851,12.30283751,117.9,117.87,0.05623004]
[1743752841554,8.4849,117.89,117.87,0.05623004]
[1743752842054,8.4855,117.88,117.87,0.05623004]
[1743752842256,35.39873751,117.9,117.83,14.91611679]
[1743752842555,35.39873751,117.9,117.85,14.91611679]
[1743752842753,43.88293751,117.9,117.85,14.91611679]
[1743752843054,35.39873751,117.9,117.85,14.91611679]
[1743752843352,8.4851,117.89,117.86,0.06308824]
[1743752843649,35.39873751,117.9,117.86,0.06308824]
[1743752844755,8.4862,117.88,117.86,0.06308824]
[1743752845356,35.39873751,117.9,117.87,8.4862]
[1743752845956,43.88333751,117.9,117.87,8.4862]
[1743752846356,8.4853,117.89,117.86,8.54978824]
[1743752846557,8.4853,117.89,117.86,0.06308824]
[1743752846759,35.39873751,117.9,117.87,8.4858]
[1743752846954,43.88333751,117.9,117.87,8.4858]
[1743752847154,43.88333751,117.9,117.86,0.06308824]
[1743752847457,8.4852,117.89,117.86,0.06308824]
[1743752847658,35.39873751,117.9,117.86,0.06308824]
[1743752848147,8.4862,117.87,117.86,0.06308824]
[1743752848350,40.1662,117.87,117.86,0.06308824]
[1743752848548,31.68,117.89,117.86,0.06308824]
[1743752849760,8.4859,117.88,117.86,0.06308824]
[1743752849958,31.68,117.89,117.86,0.06308824]
[1743752850261,40.1652,117.89,117.86,0.06308824]
[1743752850860,31.68,117.89,117.88,8.4855]
[1743752851064,3.81873751,117.9,117.86,0.06308824]
[1743752851065,3.81873751,117.9,117.86,14.97920503]
[1743752851359,3.81873751,117.9,117.88,14.91611679]
[1743752851756,3.81873751,117.9,117.89,8.4848]
[1743752852353,3.81873751,117.9,117.89,23.40091679]
[1743752852556,3.81873751,117.9,117.89,8.4848]
[1743752853061,3.81873751,117.9,117.88,8.4852]
[1743752853961,3.81873751,117.9,117.87,14.91611679]
[1743752853962,3.81873751,117.9,117.89,8.4848]
[1743752856861,3.81873751,117.9,117.89,23.40091679]
[1743752859370,2.1849,117.96,117.89,46.53611679]
[1743752859566,33.8049,117.96,117.89,46.53611679]
[1743752859766,42.285,117.96,117.93,8.4814]
[1743752860063,10.665,117.96,117.89,46.53611679]
[1743752860264,42.265,117.96,117.89,46.53611679]
[1743752860466,0.06046479,117.94,117.91,0.05359547]
[1743752860763,0.06046479,117.94,117.91,14.96971226]
[1743752861465,2.3624,117.98,117.93,14.91611679]
[1743752861466,8.479,117.98,117.93,14.91611679]
[1743752861862,8.479,117.98,117.96,8.4797]
[1743752862064,8.4784,117.98,117.93,14.91611679]
[1743752862273,31.56,118.0,117.95,8.4805]
[1743752862466,31.56,118.0,117.93,14.91611679]
[1743752862769,8.4797,117.97,117.96,0.05459348]
[1743752862968,0.05396673,117.99,117.96,0.05459348]
[1743752863866,8.4791,117.97,117.96,0.05459348]
[1743752864168,31.7,117.97,117.91,14.91611679]
[1743752864469,8.4809,117.95,117.93,8.4816]
[1743752864668,34.0685,117.97,117.9,17.25891679]
[1743752864871,8.4806,117.95,117.9,17.25891679]
[1743752865163,0.0566151,117.94,117.92,8.4821]
[1743752865367,8.5381151,117.94,117.92,8.4821]
[1743752865567,31.7766151,117.94,117.91,8.53673152]
[1743752865866,8.4827,117.92,117.91,0.05363152]
[1743752866067,31.7766151,117.94,117.91,0.05363152]
[1743752866263,31.7766151,117.94,117.91,8.53663152]
[1743752866968,40.2583151,117.94,117.91,8.53663152]
[1743752867168,40.2583151,117.94,117.92,8.4826]
[1743752867466,31.7766151,117.94,117.91,0.05363152]
[1743752869072,46.69273189,117.94,117.86,49.01051679]
[1743752869273,8.4842,117.9,117.88,8.4852]
[1743752869466,40.2242,117.9,117.88,8.4852]
[1743752870166,40.28782323,117.9,117.88,8.54063044]
[1743752870566,8.4848,117.89,117.88,0.05543044]
[1743752870972,31.80362323,117.9,117.88,0.05543044]
[1743752871171,0.06362323,117.9,117.88,0.05543044]
[1743752872371,0.06362323,117.9,117.89,8.4848]
[1743752873062,0.06362323,117.9,117.88,23.45674723]
[1743752873261,0.06362323,117.9,117.88,0.05543044]
[1743752874165,0.06362323,117.9,117.88,8.54063044]
[1743752874769,0.06362323,117.9,117.88,0.05543044]
[1743752875370,8.4848,117.89,117.88,0.05543044]
[1743752875868,10.6701,117.89,117.88,0.05543044]
[1743752876070,2.1853,117.89,117.84,8.488]
[1743752876272,31.92,117.88,117.82,14.91611679]
[1743752876769,8.4863,117.87,117.84,8.4879]
[1743752877067,8.4863,117.87,117.84,8.5490308]
[1743752877274,8.54330938,117.87,117.84,8.5490308]
[1743752877574,0.05700938,117.87,117.85,8.4876]
[1743752878475,0.05700938,117.87,117.84,8.5493308]
[1743752878671,8.54360938,117.87,117.84,8.5493308]
[1743752878872,0.05700938,117.87,117.84,8.5493308]
[1743752879072,8.54360938,117.87,117.84,8.5493308]
[1743752879374,8.54360938,117.87,117.84,0.0611308]
[1743752879375,0.05700938,117.87,117.84,0.0611308]
[1743752879676,8.54360938,117.87,117.84,8.5492308]
[1743752879972,0.05700938,117.87,117.84,0.0611308]
[1743752880776,8.487,117.86,117.84,8.5491308]
[1743752880976,8.487,117.86,117.84,0.0611308]
[1743752881376,8.54370938,117.87,117.84,0.0611308]
[1743752881573,0.05700938,117.87,117.84,0.0611308]
[1743752881774,0.05700938,117.87,117.84,8.5491308]
[1743752882074,8.54360938,117.87,117.84,8.5491308]
[1743752883074,8.54360938,117.87,117.85,8.4877]
[1743752883277,8.4874,117.86,117.84,0.0611308]
[1743752883473,0.05700938,117.87,117.84,0.0611308]
[1743752883671,0.05700938,117.87,117.84,8.5491308]
[1743752883980,8.487,117.86,117.84,0.0611308]
[1743752884177,8.487,117.86,117.84,8.5494308]
[1743752884377,0.05700938,117.87,117.85,14.91611679]
[1743752884578,0.05700938,117.87,117.86,8.487]
[1743752884880,0.05700938,117.87,117.85,14.91611679]
[1743752885280,0.05700938,117.87,117.85,23.40321679]
[1743752885981,0.05700938,117.87,117.85,8.4871]
[1743752886281,32.13700938,117.87,117.85,8.4871]
[1743752886479,40.62360938,117.87,117.85,8.4871]
[1743752887081,32.13700938,117.87,117.84,0.0611308]
[1743752887574,0.05700938,117.87,117.84,0.0611308]
[1743752887770,8.54340938,117.87,117.84,0.0611308]
[1743752888982,8.4876,117.86,117.84,0.0611308]
[1743752889184,0.05700938,117.87,117.84,0.0611308]
[1743752890587,8.4872,117.86,117.84,0.0611308]
[1743752890885,0.05700938,117.87,117.84,0.0611308]
[1743752891781,8.4873,117.86,117.84,0.0611308]
[1743752891987,0.05700938,117.87,117.84,0.0611308]
[1743752892687,8.4877,117.85,117.84,0.0611308]
[1743752892886,0.05700938,117.87,117.84,0.0611308]
[1743752893283,8.4875,117.86,117.84,0.0611308]
[1743752893586,0.05700938,117.87,117.84,0.0611308]
[1743752893787,8.4877,117.85,117.84,0.0611308]
[1743752894687,40.4874,117.86,117.84,0.0611308]
[1743752894891,0.05700938,117.87,117.84,0.0611308]
[1743752897088,8.4876,117.86,117.84,0.0611308]
[1743752898485,0.05700938,117.87,117.84,0.0611308]
[1743752899188,8.487,117.86,117.84,0.0611308]
[1743752899489,0.05700938,117.87,117.84,0.0611308]
[1743752900192,8.4874,117.86,117.84,0.0611308]
[1743752900692,0.05700938,117.87,117.84,0.0611308]
[1743752901289,0.05700938,117.87,117.79,14.91611679]
[1743752901490,14.91611679,117.86,117.77,14.91611679]
[1743752901790,8.492,117.79,117.77,8.4931]
[1743752902387,8.55366604,117.79,117.77,8.54959914]
[1743752902588,8.55366604,117.79,117.77,0.05649914]
[1743752903087,0.06166604,117.79,117.77,8.54969914]
[1743752903593,8.55396604,117.79,117.77,0.05649914]
[1743752904593,0.06166604,117.79,117.77,8.54979914]
[1743752904894,0.06166604,117.79,117.77,0.05649914]
[1743752905893,8.55426604,117.79,117.77,0.05649914]
[1743752906093,0.06166604,117.79,117.77,0.05649914]
[1743752906885,8.55396604,117.79,117.77,8.54959914]
[1743752907087,8.55396604,117.79,117.77,0.05649914]
[1743752907688,8.4927,117.78,117.77,0.05649914]
[1743752908194,0.06166604,117.79,117.77,0.05649914]
[1743752908493,0.06166604,117.79,117.77,8.54969914]
[1743752909795,8.55376604,117.79,117.77,8.54969914]
[1743752910696,32.1,117.78,117.72,17.13981679]
[1743752910889,32.1,117.78,117.71,14.91611679]
[1743752911090,2.2146,117.77,117.71,14.91611679]
[1743752911693,32.1,117.78,117.71,14.91611679]
[1743752911694,32.1,117.78,117.73,14.91611679]
[1743752911887,0.06349129,117.75,117.74,8.4956]
[1743752912697,0.06349129,117.75,117.73,23.46872961]
[1743752912895,0.06349129,117.75,117.73,14.97282961]
[1743752913089,14.91611679,117.86,117.74,32.14]
[1743752913395,32.16,117.84,117.78,14.91611679]
[1743752913992,8.4909,117.81,117.78,23.40851679]
[1743752914192,0.05559523,117.81,117.78,14.97493943]
[1743752915000,0.05559523,117.81,117.79,8.4915]
[1743752915497,0.05559523,117.81,117.78,14.97493943]
[1743752916198,8.54659523,117.81,117.78,23.46723943]
[1743752916788,0.05559523,117.81,117.79,8.4915]
[1743752916993,0.05559523,117.81,117.78,14.97493943]
[1743752917596,0.05559523,117.81,117.8,14.91611679]
[1743752917791,0.05559523,117.81,117.8,23.40741679]
[1743752918101,12.9078,117.85,117.8,14.91611679]
[1743752918302,2.2051,117.85,117.8,14.91611679]
[1743752918605,14.91611679,117.93,117.84,14.91611679]
[1743752918898,40.803,117.92,117.89,8.4848]
[1743752919099,32.32,117.92,117.89,8.4848]
[1743752919397,32.38028527,117.92,117.89,8.549194]
[1743752919790,32.38028527,117.92,117.89,0.064394]
[1743752920200,8.4841,117.9,117.89,0.064394]
[1743752920593,8.487,117.86,117.82,26.08510617]
[1743752920800,8.487,117.86,117.83,132.4888]
[1743752921000,32.32,117.88,117.8,58.49360617]
[1743752921306,8.4879,117.85,117.82,8.4894]
[1743752921507,32.32,117.88,117.81,124.0]
[1743752921805,8.54636697,117.86,117.83,0.06069814]
[1743752922103,8.54636697,117.86,117.83,8.54949814]
[1743752923496,0.05906697,117.86,117.84,8.4884]
[1743752923702,0.05906697,117.86,117.83,0.06069814]
[1743752924102,0.05906697,117.86,117.84,8.488]
[1743752924304,0.05906697,117.86,117.84,132.488]
[1743752924802,0.05906697,117.86,117.85,8.4877]
[1743752925105,2.16,117.91,117.84,147.86280617]
[1743752925306,10.6439,117.91,117.84,150.08430617]
[1743752925507,2.16,117.91,117.84,150.08430617]
[1743752925707,2.2187,117.92,117.86,23.86280617]
[1743752926008,10.7017,117.92,117.88,8.485]
[1743752926305,0.05508843,117.9,117.88,0.05554445]
[1743752927304,32.37508843,117.9,117.88,0.05554445]
[1743752927504,8.4848,117.89,117.88,0.05554445]
[1743752929006,10.6371,117.89,117.8,23.86280617]
[1743752929210,2.2069,117.88,117.8,23.86280617]
[1743752929508,32.38,117.87,117.81,124.0]
[1743752929910,2.2826,117.86,117.8,8.491]
[1743752930106,0.05760699,117.85,117.83,0.0604643]
[1743752930912,8.489,117.84,117.83,0.0604643]
[1743752931207,0.05760699,117.85,117.83,0.0604643]
[1743752931406,10.6423,117.89,117.84,23.86280617]
[1743752931608,488.86,117.95,117.83,32.4204643]
[1743752931609,4.4841,117.93,117.86,23.86280617]
[1743752931914,36.9241,117.93,117.86,23.86280617]
[1743752932107,36.9241,117.93,117.84,28.20780617]
[1743752932611,8.4845,117.9,117.84,28.20780617]
[1743752932811,8.54026844,117.9,117.87,0.06168338]
[1743752933707,8.54026844,117.9,117.87,8.54758338]
[1743752933911,0.05576844,117.9,117.87,0.06168338]
[1743752934311,0.05576844,117.9,117.89,8.4848]
[1743752934817,2.1483,117.94,117.88,23.86280617]
[1743752935411,32.44,117.96,117.91,8.483]
[1743752935607,509.22188676,118.08,117.88,23.86280617]
[1743752935608,49.34280617,118.04,117.95,23.86280617]
[1743752935806,291.81413012,118.07,118.03,23.86280617]
[1743752936011,291.81413012,118.07,118.01,23.86280617]
[1743752936319,582.92210339,118.06,117.97,8.479]
[1743752936513,488.54,118.05,117.96,23.86280617]
[1743752936709,8.4753,118.03,117.96,23.86280617]
[1743752936909,36.66,118.04,117.96,32.34230617]
[1743752937107,2.2271,118.03,117.96,32.34230617]
[1743752937307,10.7021,118.03,117.96,23.86280617]
[1743752937708,0.05782626,118.01,117.98,0.05879376]
[1743752938011,36.67782626,118.01,117.98,0.05879376]
[1743752938211,36.67782626,118.01,117.98,8.53659376]
[1743752938712,0.05782626,118.01,118.0,8.4769]
[1743752940104,0.05782626,118.01,117.99,8.4774]
[1743752940305,0.05782626,118.01,117.98,0.05879376]
[1743752940506,514.98232289,118.3,118.0,23.86280617]
[1743752940810,568.14351033,118.22,118.18,23.86280617]
[1743752941012,568.14351033,118.22,118.2,23.86280617]
[1743752941615,1183.59870945,118.28,118.2,23.86280617]
[1743752941616,1136.82339027,118.28,118.2,62.34280617]
[1743752941815,0.05931291,118.22,118.2,62.40075024]
[1743752942012,1136.82339027,118.28,118.2,62.34280617]
[1743752942208,1098.36339027,118.28,118.2,0.05957223]
[1743752942413,1122.22619644,118.28,118.18,62.50280617]
[1743752942616,23.86280617,118.26,118.14,23.86280617]
[1743752942913,23.86280617,118.24,118.13,38.66]
[1743752943119,51.5944,118.23,118.14,23.86280617]
[1743752943319,0.06036005,118.2,118.17,0.05391609]
[1743752944016,0.06036005,118.2,118.13,38.66]
[1743752944212,38.76036005,118.2,118.13,38.66]
[1743752944611,0.06036005,118.2,118.13,77.27370516]
[1743752944808,0.06036005,118.2,118.13,38.66]
[1743752945016,0.06036005,118.2,118.15,0.06497525]
[1743752945214,38.61370516,118.21,118.15,0.06497525]
[1743752945411,8.4639,118.19,118.15,0.06497525]
[1743752945617,0.06264006,118.19,118.15,0.06497525]
[1743752946014,38.66,118.18,118.15,0.06497525]
[1743752946214,40.8981,118.18,118.15,0.06497525]
[1743752946416,40.8981,118.18,118.09,77.31370516]
[1743752946616,40.8981,118.18,118.09,38.61370516]
[1743752947316,40.8981,118.18,118.08,38.62]
[1743752947523,40.8981,118.18,118.07,38.61370516]
[1743752947820,0.06421955,118.14,118.12,0.06097106]
[1743752949416,8.53111955,118.14,118.12,0.06097106]
[1743752949617,0.06421955,118.14,118.12,0.06097106]
[1743752949919,0.06421955,118.14,118.05,38.46]
[1743752950120,2.3365,118.14,118.05,46.9332]
[1743752950419,2.3365,118.14,118.05,38.46]
[1743752951011,0.05703548,118.11,118.08,0.05353339]
[1743752952227,0.05703548,118.11,118.08,38.39353339]
[1743752952424,0.05703548,118.11,118.09,8.4704]
[1743752952819,0.05703548,118.11,118.08,38.39353339]
[1743752953023,0.05703548,118.11,118.09,8.4699]
[1743752953322,0.05703548,118.11,118.08,38.39353339]
[1743752953522,0.05703548,118.11,118.08,0.05353339]
[1743752954422,8.4697,118.1,118.08,0.05353339]
[1743752955127,0.05703548,118.11,118.08,0.05353339]
[1743752955528,8.4704,118.09,118.08,0.05353339]
[1743752956227,46.6497,118.1,118.08,0.05353339]
[1743752956630,38.18,118.1,118.08,0.05353339]
[1743752956929,8.4704,118.09,118.08,0.05353339]
[1743752958431,0.05703548,118.11,118.08,0.05353339]
[1743752959037,0.05703548,118.11,118.08,8.52443339]
[1743752959835,0.05703548,118.11,118.08,0.05353339]
[1743752960841,0.05703548,118.11,118.08,8.52433339]
[1743752961438,0.05703548,118.11,118.09,8.4704]
[1743752963455,0.05703548,118.11,118.1,8.4697]
[1743752963659,2.2973,118.17,118.1,8.4697]
[1743752963951,2.2973,118.17,118.1,37.92]
[1743752964839,0.05633715,118.15,118.12,8.52733654]
[1743752965043,0.13280778,118.17,118.12,0.05943654]
[1743752965245,0.13280778,118.17,118.14,8.4665]
[1743752965443,0.13280778,118.17,118.12,0.05943654]
[1743752966245,0.05435892,118.16,118.12,0.05943654]
[1743752966435,0.05435892,118.16,118.12,8.52723654]
[1743752967037,0.13280778,118.17,118.12,8.52723654]
[1743752967443,0.13280778,118.17,118.12,0.05943654]
[1743752968143,0.0576618,118.16,118.12,8.52743654]
[1743752968444,0.0576618,118.16,118.12,0.05943654]
[1743752968643,37.62,118.15,118.12,0.05943654]
[1743752968843,2.3578,118.14,118.12,0.05943654]
[1743752969041,2.3578,118.14,118.1,8.4694]
[1743752969042,2.3578,118.14,118.06,284.41443923]
[1743752969244,10.8251,118.14,118.09,8.47]
[1743752969439,2.3578,118.14,118.09,8.47]
[1743752970244,0.05807176,118.13,118.1,0.05384768]
[1743752970550,37.5,118.12,118.1,0.05384768]
[1743752970847,37.5,118.12,118.08,8.4709]
[1743752971752,37.5,118.12,118.09,8.4704]
[1743752971945,0.06038325,118.11,118.09,8.53127025]
[1743752972250,0.06038325,118.11,118.09,8.53097025]
[1743752973255,0.06038325,118.11,118.1,8.4697]
[1743752978754,0.06038325,118.11,118.09,8.53087025]
[1743752978956,0.06038325,118.11,118.09,0.06087025]
[1743752979158,0.06038325,118.11,118.1,8.4697]
[1743752979455,16.0,118.16,118.1,23.76683442]
[1743752980654,0.06427444,118.14,118.13,8.4676]
[1743752984456,0.06427444,118.14,118.12,0.05794531]
[1743752984755,0.06427444,118.14,118.05,2.1515]
[1743752984952,60.60683442,118.15,118.09,8.4704]
[1743752985354,60.60683442,118.15,118.05,36.82]
[1743752985659,23.76683442,118.13,118.04,284.41443923]
[1743752985859,8.4698,118.1,118.09,0.06298416]
[1743752986253,10.84533519,118.11,118.09,0.06298416]
[1743752987054,0.06163519,118.11,118.09,0.06298416]
[1743752987254,0.06163519,118.11,118.1,8.4697]
[1743752987455,0.06163519,118.11,118.09,0.06298416]
[1743752987657,0.06163519,118.11,118.09,8.53298416]
[1743752987856,0.06163519,118.11,118.09,0.06298416]
[1743752989350,0.06163519,118.11,118.1,8.4697]
[1743752989556,0.06163519,118.11,118.09,0.06298416]
[1743752989751,0.06163519,118.11,118.09,8.53298416]
[1743752990056,0.06163519,118.11,118.09,0.06298416]
[1743752990460,0.06163519,118.11,118.1,8.4697]
[1743752990960,8.53093519,118.11,118.09,8.53298416]
[1743752991357,0.06163519,118.11,118.09,8.53298416]
[1743752991859,0.06163519,118.11,118.09,0.06298416]
[1743752992357,8.53093519,118.11,118.09,0.06298416]
[1743752992861,8.4697,118.1,118.09,0.06298416]
[1743752996858,8.4728,118.06,118.02,25.91623442]
[1743752997058,8.4728,118.06,118.04,8.4737]
[1743752997259,8.4728,118.06,118.02,2.1494]
[1743752997557,8.4734,118.05,118.03,8.4744]
[1743752998255,8.53552727,118.05,118.03,8.53691858]
[1743752998563,0.06212727,118.05,118.03,8.53691858]
[1743752999758,0.06212727,118.05,118.04,8.474]
[1743752999959,0.06212727,118.05,118.03,0.06251858]
[1743753000261,0.06212727,118.05,118.03,8.53661858]
[1743753000559,8.53542727,118.05,118.03,8.53661858]
[1743753000763,0.06212727,118.05,118.03,8.53661858]
[1743753001064,8.53552727,118.05,118.03,8.53661858]
[1743753001663,0.06212727,118.05,118.04,8.474]
[1743753001864,2.2701,118.09,118.04,59.62683442]
[1743753002165,2.2701,118.09,118.07,8.4713]
[1743753002364,8.4701,118.1,118.04,59.62683442]
[1743753002860,16.0,118.16,118.08,47.53366884]
[1743753003068,16.0,118.16,118.12,23.76683442]
[1743753003271,16.0,118.16,118.12,59.86683442]
[1743753003465,16.0,118.16,118.12,36.1]
[1743753003665,16.0,118.16,118.11,0.05513919]
[1743753003860,8.4668,118.15,118.11,8.52373919]
[1743753004065,16.0,118.16,118.11,0.05513919]
[1743753004368,0.05416941,118.15,118.14,8.4665]
[1743753006766,0.05416941,118.15,118.13,8.52703973]
[1743753006965,0.05416941,118.15,118.13,0.05983973]
[1743753007369,0.05416941,118.15,118.14,8.4669]
[1743753008373,0.05416941,118.15,118.14,32.23373442]
[1743753009165,0.05416941,118.15,118.13,0.05983973]
[1743753010867,0.05416941,118.15,118.14,8.4669]
[1743753011176,8.52066941,118.15,118.13,0.05983973]
[1743753013078,8.4669,118.14,118.13,0.05983973]
[1743753013378,0.05416941,118.15,118.13,0.05983973]
[1743753013578,8.4669,118.14,118.13,0.05983973]
[1743753015882,8.52076941,118.15,118.13,0.05983973]
[1743753016183,0.05416941,118.15,118.13,0.05983973]
[1743753016484,8.4669,118.14,118.13,0.05983973]
[1743753017378,10.8021,118.14,118.13,0.05983973]
[1743753017576,12.9338,118.14,118.13,0.05983973]
[1743753017975,4.4669,118.14,118.07,35.54]
[1743753018280,4.4669,118.14,118.09,8.4701]
[1743753018585,8.4686,118.12,118.07,35.54]
[1743753018784,4.4669,118.14,118.07,35.54]
[1743753019083,0.06367953,118.12,118.09,0.05596205]
[1743753020385,0.06367953,118.12,118.1,8.4691]
[1743753021085,0.06367953,118.12,118.11,8.469]
[1743753021485,0.06367953,118.12,118.09,0.05596205]
[1743753021687,8.53207953,118.12,118.1,8.4692]
[1743753022584,0.06367953,118.12,118.1,8.4692]
[1743753023486,8.53197953,118.12,118.1,8.4692]
[1743753023989,0.06367953,118.12,118.09,8.52596205]
[1743753024191,0.06367953,118.12,118.09,0.05596205]
[1743753024386,0.06367953,118.12,118.1,8.469]
[1743753025190,8.53237953,118.12,118.1,8.469]
[1743753025586,0.06367953,118.12,118.09,8.52616205]
[1743753025792,8.4693,118.11,118.09,8.52616205]
[1743753025994,8.4693,118.11,118.09,0.05596205]
[1743753026190,0.06367953,118.12,118.09,0.05596205]
[1743753026891,0.06367953,118.12,118.11,8.469]
[1743753029990,24.4658,118.16,118.13,8.4671]
[1743753030689,16.0,118.16,118.14,8.4668]
[1743753030893,16.05440204,118.16,118.14,8.52427935]
[1743753031394,24.51980204,118.16,118.14,8.52427935]
[1743753031596,16.05440204,118.16,118.14,8.52427935]
[1743753032690,16.05440204,118.16,118.15,8.4661]
[1743753033287,16.05440204,118.16,118.14,8.52397935]
[1743753033597,24.52020204,118.16,118.14,0.05747935]
[1743753033993,16.05440204,118.16,118.14,0.05747935]
[1743753034196,8.4661,118.15,118.14,0.05747935]
[1743753034899,24.52030204,118.16,118.14,0.05747935]
[1743753035098,24.52030204,118.16,118.14,8.52407935]
[1743753035299,24.52030204,118.16,118.14,0.05747935]
[1743753036195,8.4661,118.15,118.14,0.05747935]
[1743753036399,50.93440204,118.16,118.1,14.85591879]
[1743753036591,50.93440204,118.16,118.08,17.00921879]
[1743753036794,53.1963,118.16,118.11,8.4689]